fUST/lending_fUST_20240115
["ID","MTS","AMOUNT","RATE_DAILY","PERIOD"]
[311578966,1705253450113,-735.81,0.00028866,2]
[311578967,1705253450129,-500.0,0.00028866,2]
[311578968,1705253450141,-500.0,0.00028866,2]
[311578969,1705253450151,-500.0,0.00028866,2]
[311578970,1705253450160,-525.69,0.00028866,2]
[311578971,1705253450169,-256.881508,0.00028866,2]
[311578972,1705253450179,-256.881508,0.00028866,2]
[311578973,1705253450188,-500.0,0.00028868,2]
[311578974,1705253450197,-500.0,0.00028868,2]
[311578975,1705253450207,-86922.58733031,0.00028869,4]
[311578976,1705253450216,-1269.915774,0.00028869,2]
[311578977,1705253450225,-1269.915774,0.00028869,2]
[311578978,1705253450234,-151.0,0.00028869,2]
[311578979,1705253450243,-202.8,0.00028869,2]
[311578980,1705253450253,-188.71711927,0.00028879,2]
[311578981,1705253450263,-153.02380808,0.00028967,2]
[311578982,1705253450272,-2305.37797556,0.00029,2]
[311578983,1705253450281,-580.47,0.00029041,2]
[311578984,1705253450347,-500.0,0.00029041,2]
[311578987,1705253450364,-500.0,0.00029041,2]
[311578988,1705253450376,-500.0,0.00029041,2]
[311578990,1705253450386,-500.0,0.00029041,2]
[311578992,1705253450395,-552.47,0.00029041,2]
[311578995,1705253450405,-500.0,0.00029041,2]
[311578996,1705253450416,-3531.37,0.00029041,2]
[311578998,1705253450425,-500.0,0.00029041,2]
[311579000,1705253450435,-1271.4,0.00029041,2]
[311579002,1705253450444,-500.0,0.00029041,2]
[311579004,1705253450454,-500.0,0.00029041,2]
[311579006,1705253450464,-500.0,0.00029041,2]
[311579008,1705253450473,-500.0,0.00029041,2]
[311579010,1705253450482,-500.0,0.00029041,2]
[311579012,1705253450491,-500.0,0.00029041,2]
[311579014,1705253450501,-500.0,0.00029041,2]
[311579016,1705253450510,-500.0,0.00029041,2]
[311579018,1705253450519,-641.83,0.00029041,2]
[311579019,1705253450529,-500.0,0.00029041,2]
[311579020,1705253450538,-500.0,0.00029041,2]
[311579021,1705253450548,-500.0,0.00029041,2]
[311579022,1705253450558,-398.43963782,0.00029041,2]
[311579023,1705253450567,-9905.14,0.00029041,2]
[311579025,1705253450576,-1725.74,0.00029041,2]
[311579027,1705253450585,-500.0,0.00029041,2]
[311579029,1705253450595,-500.0,0.00029041,2]
[311579031,1705253450604,-2107.5,0.00029041,2]
[311579033,1705253450613,-739.54,0.00029041,2]
[311579035,1705253450622,-1811.01,0.00029041,2]
[311579037,1705253450632,-2175.66,0.00029041,2]
[311579039,1705253450641,-721.09,0.00029041,2]
[311579041,1705253450650,-500.0,0.00029041,2]
[311579043,1705253450660,-10773.17,0.00029041,2]
[311579045,1705253450670,-500.0,0.00029041,2]
[311579047,1705253450679,-4460.62,0.00029041,2]
[311579049,1705253450689,-500.0,0.00029041,2]
[311579051,1705253450698,-13966.64,0.00029041,2]
[311579053,1705253450707,-500.0,0.00029041,2]
[311579055,1705253450717,-500.0,0.00029041,2]
[311579057,1705253450727,-747.17,0.00029041,2]
[311579059,1705253450737,-1031.84,0.00029041,2]
[311579061,1705253450746,-5902.58,0.00029041,2]
[311579063,1705253450755,-500.0,0.00029041,2]
[311579064,1705253450764,-9518.7,0.00029041,2]
[311579065,1705253450772,-500.0,0.00029041,2]
[311579066,1705253450782,-677.95,0.00029041,2]
[311579067,1705253450792,-712.02,0.00029041,2]
[311579068,1705253450801,-2858.22,0.00029041,2]
[311579069,1705253450810,-826.14,0.00029041,2]
[311579070,1705253450819,-24471.6,0.00029041,2]
[311579071,1705253450828,-500.0,0.00029041,2]
[311579072,1705253450837,-42522.59,0.00029041,2]
[311579073,1705253450846,-500.0,0.00029041,2]
[311579075,1705253450855,-659.72,0.00029041,2]
[311579077,1705253450864,-500.0,0.00029041,2]
[311579079,1705253450874,-500.0,0.00029041,2]
[311579081,1705253450883,-500.0,0.00029041,2]
[311579083,1705253450893,-500.0,0.00029041,2]
[311579085,1705253450902,-500.0,0.00029041,2]
[311579087,1705253450911,-500.0,0.00029041,2]
[311579089,1705253450920,-500.0,0.00029041,2]
[311579091,1705253450929,-500.0,0.00029041,2]
[311579093,1705253450939,-500.0,0.00029041,2]
[311579095,1705253450947,-500.0,0.00029041,2]
[311579097,1705253450957,-500.0,0.00029041,2]
[311579099,1705253450966,-500.0,0.00029041,2]
[311579101,1705253450977,-1042.23,0.00029041,2]
[311579103,1705253450987,-1501.18,0.00029041,2]
[311579105,1705253450996,-241.37743917,0.00029041,2]
[311579107,1705253451005,-500.0,0.00029041,2]
[311579109,1705253451014,-2874.21613,0.00029041,2]
[311579111,1705253451023,-2874.21613,0.00029041,2]
[311579112,1705253451033,-153.02380808,0.00029046,2]
[311579114,1705253451043,-500.0,0.0002914,2]
[311579117,1705253451054,-500.0,0.0002914,2]
[311579119,1705253451063,-1961.75,0.0002914,2]
[311579121,1705253451072,-500.0,0.0002914,2]
[311579123,1705253451082,-500.0,0.0002914,2]
[311579125,1705253451092,-569.53502603,0.0002914,2]
[311579127,1705253451101,-1375.1,0.0002914,2]
[311579129,1705253451110,-731.96,0.0002914,2]
[311579131,1705253451119,-500.0,0.0002914,2]
[311579133,1705253451129,-500.0,0.0002914,2]
[311579135,1705253451141,-500.0,0.0002914,2]
[311579137,1705253451150,-2312.59,0.0002914,2]
[311579139,1705253451159,-500.0,0.0002914,2]
[311579141,1705253451168,-695.8,0.0002914,2]
[311579143,1705253451177,-1344.32,0.0002914,2]
[311579145,1705253451187,-645.85,0.0002914,2]
[311579147,1705253451196,-3561.66,0.0002914,2]
[311579148,1705253451205,-500.0,0.0002914,2]
[311579150,1705253451214,-1906.13,0.0002914,2]
[311579152,1705253451224,-500.0,0.0002914,2]
[311579154,1705253451233,-1068.63,0.0002914,2]
[311579157,1705253451243,-500.0,0.0002914,2]
[311579159,1705253451251,-1442.45,0.0002914,2]
[311579161,1705253451261,-500.0,0.0002914,2]
[311579163,1705253451271,-500.0,0.0002914,2]
[311579165,1705253451280,-500.0,0.0002914,2]
[311579167,1705253451289,-2436.7,0.0002914,2]
[311579169,1705253451299,-293.13279507,0.0002914,2]
[311579171,1705253451308,-500.0,0.0002914,2]
[311579173,1705253451317,-735.81,0.0002914,2]
[311579175,1705253451326,-500.0,0.0002914,2]
[311579177,1705253451336,-500.0,0.0002914,2]
[311579178,1705253451345,-500.0,0.0002914,2]
[311579180,1705253451354,-525.69,0.0002914,2]
[311579182,1705253451364,-151.0,0.0002914,2]
[311579184,1705253451376,-500.0,0.00029142,2]
[311579186,1705253451385,-521.2196797,0.00029142,2]
[311579188,1705253451394,-256.881508,0.00029143,2]
[311579190,1705253451403,-256.881508,0.00029143,2]
[311579192,1705253451413,-155.0,0.00029236,2]
[311579195,1705253451422,-580.47,0.00029315,2]
[311579196,1705253451432,-500.0,0.00029315,2]
[311579199,1705253451442,-232.5828535,0.00029315,2]
[311579200,1705253451452,-358.55140645,0.00029315,2]
[311579202,1705253451463,-500.0,0.00029315,2]
[311579205,1705253451473,-552.47,0.00029315,2]
[311579207,1705253451482,-500.0,0.00029315,2]
[311579209,1705253451492,-3531.37,0.00029315,2]
[311579211,1705253451501,-500.0,0.00029315,2]
[311579212,1705253451511,-1271.4,0.00029315,2]
[311579215,1705253451520,-500.0,0.00029315,2]
[311579217,1705253451531,-500.0,0.00029315,2]
[311579219,1705253451541,-500.0,0.00029315,2]
[311579221,1705253451550,-619.09681012,0.00029315,2]
[311579229,1705253451559,-637.5329567,0.00029315,2]
[311579231,1705253451629,-500.0,0.00029315,2]
[311579233,1705253451638,-500.0,0.00029315,2]
[311579235,1705253451647,-500.0,0.00029315,2]
[311579237,1705253451657,-641.83,0.00029315,2]
[311579239,1705253451667,-452.0982146,0.00029315,2]
[311579241,1705253451676,-500.0,0.00029315,2]
[311579243,1705253451686,-500.0,0.00029315,2]
[311579245,1705253451695,-9905.14,0.00029315,2]
[311579247,1705253451704,-1725.74,0.00029315,2]
[311579249,1705253451713,-500.0,0.00029315,2]
[311579251,1705253451723,-500.0,0.00029315,2]
[311579253,1705253451732,-2107.5,0.00029315,2]
[311579255,1705253451742,-739.54,0.00029315,2]
[311579257,1705253451751,-1811.01,0.00029315,2]
[311579259,1705253451761,-2175.66,0.00029315,2]
[311579262,1705253451771,-721.09,0.00029315,2]
[311579264,1705253451780,-500.0,0.00029315,2]
[311579266,1705253451790,-10773.17,0.00029315,2]
[311579268,1705253451799,-500.0,0.00029315,2]
[311579270,1705253451808,-4460.62,0.00029315,2]
[311579272,1705253451818,-500.0,0.00029315,2]
[311579274,1705253451827,-500.0,0.00029315,2]
[311579276,1705253451837,-13966.64,0.00029315,2]
[311579278,1705253451847,-500.0,0.00029315,2]
[311579280,1705253451856,-747.17,0.00029315,2]
[311579282,1705253451865,-1031.84,0.00029315,2]
[311579284,1705253451874,-5902.58,0.00029315,2]
[311579286,1705253451884,-501.55397726,0.00029315,2]
[311579288,1705253451893,-9518.7,0.00029315,2]
[311579290,1705253451902,-537.31070886,0.00029315,2]
[311579292,1705253451911,-677.95,0.00029315,2]
[311579294,1705253451920,-712.02,0.00029315,2]
[311579296,1705253451933,-2858.22,0.00029315,2]
[311579298,1705253451942,-826.14,0.00029315,2]
[311579300,1705253451951,-24471.6,0.00029315,2]
[311579302,1705253451959,-500.0,0.00029315,2]
[311579304,1705253451969,-42522.59,0.00029315,2]
[311579306,1705253451977,-500.0,0.00029315,2]
[311579308,1705253451986,-659.72,0.00029315,2]
[311579310,1705253451995,-500.0,0.00029315,2]
[311579312,1705253452004,-500.0,0.00029315,2]
[311579314,1705253452015,-500.0,0.00029315,2]
[311579316,1705253452024,-500.0,0.00029315,2]
[311579318,1705253452033,-500.0,0.00029315,2]
[311579320,1705253452042,-500.0,0.00029315,2]
[311579322,1705253452051,-515.26628988,0.00029315,2]
[311579324,1705253452060,-500.0,0.00029315,2]
[311579326,1705253452069,-500.0,0.00029315,2]
[311579328,1705253452079,-507.87823536,0.00029315,2]
[311579330,1705253452088,-500.0,0.00029315,2]
[311579332,1705253452098,-500.0,0.00029315,2]
[311579334,1705253452108,-1042.23,0.00029315,2]
[311579336,1705253452118,-1501.18,0.00029315,2]
[311579338,1705253452127,-500.0,0.00029315,2]
[311579340,1705253452136,-2874.21613,0.00029315,2]
[311579341,1705253452146,-2874.21613,0.00029315,2]
[311579344,1705253452157,-151.0,0.00029315,2]
[311579345,1705253452167,-500.0,0.00029414,2]
[311579348,1705253452177,-339.50865496,0.00029414,2]
[311579349,1705253452188,-1961.75,0.00029414,2]
[311579352,1705253452197,-500.0,0.00029414,2]
[311579353,1705253452215,-500.0,0.00029414,2]
[311579356,1705253452225,-1375.1,0.00029414,2]
[311579358,1705253452239,-731.96,0.00029414,2]
[311579360,1705253452248,-236.40930605,0.00029414,2]
[311579362,1705253452258,-500.0,0.00029414,2]
[311579363,1705253452268,-500.0,0.00029414,2]
[311579365,1705253452280,-2312.59,0.00029414,2]
[311579368,1705253452292,-500.0,0.00029414,2]
[311579370,1705253452302,-695.8,0.00029414,2]
[311579372,1705253452312,-1344.32,0.00029414,2]
[311579374,1705253452322,-645.85,0.00029414,2]
[311579376,1705253452332,-3561.66,0.00029414,2]
[311579378,1705253452342,-500.0,0.00029414,2]
[311579379,1705253452352,-1906.13,0.00029414,2]
[311579382,1705253452364,-500.0,0.00029414,2]
[311579383,1705253452377,-1068.63,0.00029414,2]
[311579386,1705253452387,-501.33867469,0.00029414,2]
[311579388,1705253452398,-1442.45,0.00029414,2]
[311579390,1705253452409,-500.0,0.00029414,2]
[311579392,1705253452420,-500.0,0.00029414,2]
[311579393,1705253452430,-500.0,0.00029414,2]
[311579395,1705253452439,-2436.7,0.00029414,2]
[311579397,1705253452448,-500.0,0.00029414,2]
[311579399,1705253452457,-735.81,0.00029414,2]
[311579401,1705253452467,-500.0,0.00029414,2]
[311579403,1705253452476,-500.0,0.00029414,2]
[311579405,1705253452486,-500.0,0.00029414,2]
[311579407,1705253452495,-525.69,0.00029414,2]
[311579409,1705253452505,-1269.915774,0.00029417,2]
[311579411,1705253452516,-1269.915774,0.00029417,2]
[311579414,1705253452526,-224.9303038,0.000295,30]
[311579415,1705253452536,-580.47,0.00029589,2]
[311579418,1705253452546,-500.0,0.00029589,2]
[311579420,1705253452556,-393.98057715,0.00029589,2]
[311579422,1705253452565,-552.47,0.00029589,2]
[311579424,1705253452574,-500.0,0.00029589,2]
[311579425,1705253452584,-3531.37,0.00029589,2]
[311579428,1705253452593,-500.0,0.00029589,2]
[311579429,1705253452603,-1271.4,0.00029589,2]
[311579432,1705253452613,-500.0,0.00029589,2]
[311579434,1705253452622,-500.0,0.00029589,2]
[311579435,1705253452632,-500.0,0.00029589,2]
[311579437,1705253452641,-500.0,0.00029589,2]
[311579440,1705253452651,-507.25393462,0.00029589,2]
[311579441,1705253452660,-500.0,0.00029589,2]
[311579443,1705253452669,-641.83,0.00029589,2]
[311579445,1705253452678,-500.0,0.00029589,2]
[311579447,1705253452688,-500.0,0.00029589,2]
[311579449,1705253452697,-9905.14,0.00029589,2]
[311579452,1705253452706,-1725.74,0.00029589,2]
[311579454,1705253452716,-500.0,0.00029589,2]
[311579456,1705253452725,-503.39727456,0.00029589,2]
[311579458,1705253452734,-2107.5,0.00029589,2]
[311579459,1705253452743,-739.54,0.00029589,2]
[311579461,1705253452752,-1811.01,0.00029589,2]
[311579470,1705253452815,-2175.66,0.00029589,2]
[311579472,1705253452830,-721.09,0.00029589,2]
[311579474,1705253452840,-470.3850543,0.00029589,2]
[311579476,1705253452848,-10773.17,0.00029589,2]
[311579478,1705253452857,-500.0,0.00029589,2]
[311579480,1705253452866,-4460.62,0.00029589,2]
[311579482,1705253452875,-500.0,0.00029589,2]
[311579484,1705253452884,-376.96166543,0.00029589,2]
[311579486,1705253452894,-13966.64,0.00029589,2]
[311579488,1705253452903,-500.0,0.00029589,2]
[311579490,1705253452912,-747.17,0.00029589,2]
[311579492,1705253452921,-1031.84,0.00029589,2]
[311579494,1705253452930,-5902.58,0.00029589,2]
[311579496,1705253452943,-9518.7,0.00029589,2]
[311579498,1705253452952,-677.95,0.00029589,2]
[311579500,1705253452961,-712.02,0.00029589,2]
[311579502,1705253452970,-2858.22,0.00029589,2]
[311579504,1705253452979,-826.14,0.00029589,2]
[311579506,1705253452989,-24471.6,0.00029589,2]
[311579508,1705253452998,-500.0,0.00029589,2]
[311579510,1705253453007,-500.0,0.00029589,2]
[311579512,1705253453017,-42522.59,0.00029589,2]
[311579514,1705253453026,-659.72,0.00029589,2]
[311579516,1705253453034,-500.0,0.00029589,2]
[311579518,1705253453043,-603.30534561,0.00029589,2]
[311579520,1705253453052,-500.0,0.00029589,2]
[311579522,1705253453061,-500.0,0.00029589,2]
[311579524,1705253453070,-500.0,0.00029589,2]
[311579526,1705253453079,-500.0,0.00029589,2]
[311579528,1705253453088,-378.84943896,0.00029589,2]
[311579530,1705253453097,-500.0,0.00029589,2]
[311579532,1705253453106,-500.0,0.00029589,2]
[311579534,1705253453115,-500.0,0.00029589,2]
[311579536,1705253453125,-1042.23,0.00029589,2]
[311579538,1705253453134,-1501.18,0.00029589,2]
[311579540,1705253453143,-2874.21613,0.00029589,2]
[311579542,1705253453152,-2874.21613,0.00029589,2]
[311579545,1705253453162,-151.0,0.00029589,2]
[311579546,1705253453171,-152.31739518,0.00029635,2]
[311579549,1705253453180,-256.881508,0.00029688,2]
[311579551,1705253453189,-256.881508,0.00029688,2]
[311579552,1705253453198,-500.0,0.00029688,2]
[311579555,1705253453207,-1961.75,0.00029688,2]
[311579556,1705253453216,-577.28942624,0.00029688,2]
[311579559,1705253453225,-500.0,0.00029688,2]
[311579561,1705253453235,-1375.1,0.00029688,2]
[311579563,1705253453243,-731.96,0.00029688,2]
[311579565,1705253453252,-500.0,0.00029688,2]
[311579567,1705253453262,-500.0,0.00029688,2]
[311579568,1705253453271,-2312.59,0.00029688,2]
[311579570,1705253453281,-228.54049167,0.00029688,2]
[311579572,1705253453290,-695.8,0.00029688,2]
[311579574,1705253453299,-1344.32,0.00029688,2]
[311579577,1705253453308,-645.85,0.00029688,2]
[311579579,1705253453317,-3561.66,0.00029688,2]
[311579581,1705253453326,-500.0,0.00029688,2]
[311579583,1705253453335,-1906.13,0.00029688,2]
[311579585,1705253453344,-500.0,0.00029688,2]
[311579587,1705253453353,-1068.63,0.00029688,2]
[311579589,1705253453363,-1442.45,0.00029688,2]
[311579591,1705253453374,-500.0,0.00029688,2]
[311579593,1705253453383,-155.65120151,0.00029688,2]
[311579594,1705253453392,-500.0,0.00029688,2]
[311579596,1705253453401,-2436.7,0.00029688,2]
[311579598,1705253453410,-500.0,0.00029688,2]
[311579600,1705253453419,-735.81,0.00029688,2]
[311579602,1705253453428,-500.0,0.00029688,2]
[311579604,1705253453436,-500.0,0.00029688,2]
[311579606,1705253453445,-500.0,0.00029688,2]
[311579608,1705253453454,-525.69,0.00029688,2]
[311579610,1705253453464,-152.3173952,0.00029764,2]
[311579612,1705253453473,-507.29882487,0.0002979,3]
[311579615,1705253453483,-158.72792269,0.00029826,2]
[311579617,1705253453492,-580.47,0.00029863,2]
[311579619,1705253453501,-500.0,0.00029863,2]
[311579621,1705253453510,-552.47,0.00029863,2]
[311579623,1705253453520,-500.0,0.00029863,2]
[311579625,1705253453528,-3531.37,0.00029863,2]
[311579626,1705253453537,-500.0,0.00029863,2]
[311579629,1705253453547,-1271.4,0.00029863,2]
[311579631,1705253453556,-500.0,0.00029863,2]
[311579633,1705253453566,-500.0,0.00029863,2]
[311579635,1705253453575,-522.80753805,0.00029863,2]
[311579637,1705253453584,-586.14625163,0.00029863,2]
[311579639,1705253453594,-500.0,0.00029863,2]
[311579641,1705253453602,-641.83,0.00029863,2]
[311579643,1705253453611,-500.0,0.00029863,2]
[311579644,1705253453621,-500.0,0.00029863,2]
[311579647,1705253453631,-9905.14,0.00029863,2]
[311579648,1705253453641,-1725.74,0.00029863,2]
[311579651,1705253453650,-500.0,0.00029863,2]
[311579652,1705253453658,-2107.5,0.00029863,2]
[311579655,1705253453668,-739.54,0.00029863,2]
[311579656,1705253453677,-1811.01,0.00029863,2]
[311579659,1705253453686,-2175.66,0.00029863,2]
[311579660,1705253453695,-721.09,0.00029863,2]
[311579662,1705253453704,-10773.17,0.00029863,2]
[311579665,1705253453713,-500.0,0.00029863,2]
[311579666,1705253453723,-4460.62,0.00029863,2]
[311579668,1705253453732,-500.0,0.00029863,2]
[311579670,1705253453741,-8536.22277133,0.00029863,2]
[311579691,1705253453918,-5430.41722867,0.00029863,2]
[311579693,1705253453928,-500.0,0.00029863,2]
[311579695,1705253453937,-747.17,0.00029863,2]
[311579697,1705253453947,-1031.84,0.00029863,2]
[311579699,1705253453956,-2493.42229421,0.00029863,2]
[311579702,1705253453968,-2476.9976201,0.00029863,2]
[311579732,1705253454245,-500.0,0.00027397,2]
[311579734,1705253454254,-500.0,0.00027397,2]
[311579736,1705253454264,-500.0,0.00027397,2]
[311579738,1705253454274,-500.0,0.00027671,2]
[311579740,1705253454283,-215.30376627,0.00027671,2]
[311579753,1705253454391,-287.29357029,0.00027671,2]
[311579755,1705253454400,-500.0,0.00027671,2]
[311579757,1705253454409,-500.0,0.00027945,2]
[311579759,1705253454419,-32.65755826,0.00027945,2]
[311579761,1705253454430,-467.34244174,0.00027945,2]
[311579763,1705253454439,-210.94761801,0.00028219,2]
[311579766,1705253454451,-289.05238199,0.00028219,2]
[311579768,1705253454461,-500.0,0.00028219,2]
[311579769,1705253454471,-500.0,0.00028493,2]
[311579772,1705253454480,-500.0,0.00028767,2]
[311579774,1705253454490,-500.0,0.00029589,2]
[311579775,1705253454500,-932.16008569,0.00029863,2]
[311579778,1705253454509,-5335.1647326,0.00029863,2]
[311579780,1705253454521,-2900.0,0.00029863,2]
[311579814,1705253454907,-154.9690062,0.00027396,4]
[311579815,1705253454917,-500.0,0.00027397,2]
[311579816,1705253454926,-155.35596248,0.00027769,2]
[311579817,1705253454936,-1283.5352674,0.00029863,2]
[311579818,1705253454944,-677.95,0.00029863,2]
[311579819,1705253454954,-712.02,0.00029863,2]
[311579820,1705253454963,-2858.22,0.00029863,2]
[311579822,1705253454971,-826.14,0.00029863,2]
[311579824,1705253454981,-24471.6,0.00029863,2]
[311579826,1705253454990,-500.0,0.00029863,2]
[311579828,1705253454998,-500.0,0.00029863,2]
[311579830,1705253455008,-42522.59,0.00029863,2]
[311579832,1705253455017,-659.72,0.00029863,2]
[311579834,1705253455027,-500.0,0.00029863,2]
[311579836,1705253455036,-500.0,0.00029863,2]
[311579838,1705253455045,-521.58039567,0.00029863,2]
[311579840,1705253455054,-500.0,0.00029863,2]
[311579842,1705253455063,-500.0,0.00029863,2]
[311579844,1705253455072,-194.6389293,0.00029863,2]
[311579846,1705253455081,-500.0,0.00029863,2]
[311579848,1705253455090,-1042.23,0.00029863,2]
[311579850,1705253455098,-500.0,0.00029863,2]
[311579852,1705253455108,-1501.18,0.00029863,2]
[311579854,1705253455117,-500.0,0.00029863,2]
[311579856,1705253455126,-2874.21613,0.00029863,2]
[311579858,1705253455136,-2874.21613,0.00029863,2]
[311579860,1705253455144,-151.0,0.00029863,2]
[311579862,1705253455154,-730.80668368,0.00029879,2]
[311579864,1705253455162,-500.0,0.00029962,2]
[311579866,1705253455171,-1961.75,0.00029962,2]
[311579867,1705253455182,-500.0,0.00029962,2]
[311579869,1705253455191,-1375.1,0.00029962,2]
[311579872,1705253455203,-731.96,0.00029962,2]
[311579873,1705253455212,-500.0,0.00029962,2]
[311579875,1705253455221,-500.0,0.00029962,2]
[311579877,1705253455230,-2312.59,0.00029962,2]
[311579879,1705253455239,-695.8,0.00029962,2]
[311579881,1705253455249,-1344.32,0.00029962,2]
[311579883,1705253455258,-645.85,0.00029962,2]
[311579885,1705253455268,-500.0,0.00029962,2]
[311579887,1705253455276,-1068.63,0.00029962,2]
[311579889,1705253455285,-1442.45,0.00029962,2]
[311579891,1705253455294,-500.0,0.00029962,2]
[311579893,1705253455303,-500.0,0.00029962,2]
[311579895,1705253455312,-2436.7,0.00029962,2]
[311579897,1705253455321,-500.0,0.00029962,2]
[311579899,1705253455330,-735.81,0.00029962,2]
[311579901,1705253455339,-500.0,0.00029962,2]
[311579903,1705253455349,-500.0,0.00029962,2]
[311579905,1705253455358,-500.0,0.00029962,2]
[311579907,1705253455367,-525.69,0.00029962,2]
[311579909,1705253455376,-1269.915774,0.00029965,2]
[311579911,1705253455385,-1269.915774,0.00029965,2]
[311579913,1705253455394,-10533.6222824,0.0003,4]
[311579915,1705253455403,-1200.0,0.0003,4]
[311579917,1705253455412,-465.07935392,0.0003,4]
[311579919,1705253455421,-687.09987426,0.0003,4]
[311579921,1705253455430,-6976.66580817,0.0003,4]
[311579923,1705253455439,-641.77426345,0.0003,4]
[311579925,1705253455448,-1490.73105059,0.0003,2]
[311579927,1705253455457,-55024.26695733,0.0003,2]
[311579929,1705253455466,-195.26619658,0.0003,4]
[311579931,1705253455475,-153.02380808,0.00030075,7]
[311579933,1705253455485,-256.881508,0.00030136,2]
[311579935,1705253455494,-256.881508,0.00030136,2]
[311579937,1705253455503,-2874.21613,0.00030136,2]
[311579939,1705253455513,-2874.21613,0.00030136,2]
[311579941,1705253455522,-151.0,0.00030136,2]
[311579943,1705253455531,-580.47,0.00030136,2]
[311579945,1705253455541,-500.0,0.00030136,2]
[311579947,1705253455550,-552.47,0.00030136,2]
[311579949,1705253455559,-500.0,0.00030136,2]
[311579951,1705253455568,-500.0,0.00030136,2]
[311579953,1705253455577,-322.37967869,0.00030136,2]
[311579955,1705253455586,-1271.4,0.00030136,2]
[311579957,1705253455595,-500.0,0.00030136,2]
[311579959,1705253455604,-500.0,0.00030136,2]
[311579961,1705253455613,-500.0,0.00030136,2]
[311579963,1705253455622,-641.83,0.00030136,2]
[311579965,1705253455632,-500.0,0.00030136,2]
[311579967,1705253455641,-278.39517445,0.00030136,2]
[311579969,1705253455650,-9905.14,0.00030136,2]
[311579971,1705253455659,-1725.74,0.00030136,2]
[311579973,1705253455668,-500.0,0.00030136,2]
[311579975,1705253455677,-2107.5,0.00030136,2]
[311579977,1705253455686,-739.54,0.00030136,2]
[311579984,1705253455748,-1811.01,0.00030136,2]
[311579986,1705253455758,-150.0,0.00030136,2]
[311579988,1705253455768,-150.0,0.00030136,2]
[311579990,1705253455777,-150.0,0.00030136,2]
[311579992,1705253455786,-150.0,0.00030136,2]
[311579994,1705253455796,-150.0,0.00030136,2]
[311579996,1705253455805,-150.0,0.00030136,2]
[311579998,1705253455816,-219.79225946,0.00030136,2]
[311580000,1705253455825,-2175.66,0.00030136,2]
[311580002,1705253455835,-721.09,0.00030136,2]
[311580004,1705253455844,-2990.41027322,0.00030136,2]
[311580007,1705253455856,-1500.0,0.00030136,2]
[311580493,1705254117119,500.0,0.00027397,30]
[311580494,1705254117441,500.0,0.00027671,30]
[311580495,1705254117943,460.83754005,0.00027945,30]
[311580542,1705254632584,-1221.57018504,0.00022542,2]
[311580544,1705254632594,-425.2676334,0.00022543,2]
[311580545,1705254632603,-1985.5364354,0.00022544,2]
[311580546,1705254632612,-974.02580815,0.00022582,2]
[311580656,1705254639003,-154.95351395,0.00022542,4]
[311580658,1705254639013,-7772.41760007,0.00022582,2]
[311580660,1705254639023,-200.0,0.0002328,2]
[311580662,1705254639032,-2078.80843534,0.0002328,2]
[311580664,1705254639041,-154.9690062,0.000235,2]
[311580666,1705254639051,-167.269158,0.00024422,2]
[311580668,1705254639060,-283.497635,0.00024571,2]